fUST/lending_fUST_20240824
["ID","MTS","AMOUNT","RATE_DAILY","PERIOD"]
[335801248,1724496644708,-147.13890006,0.00013698,2]
[335801284,1724496645029,-354.77109994,0.00013698,2]
[335801286,1724496645040,-507.59,0.00013698,2]
[335801288,1724496645050,-500.0,0.00013698,2]
[335801290,1724496645062,-500.0,0.00013698,2]
[335801292,1724496645071,-286.92579361,0.00013698,2]
[335801294,1724496645080,-500.0,0.00013698,2]
[335801296,1724496645089,-500.0,0.00013698,2]
[335801298,1724496645099,-537.24,0.00013698,2]
[335801300,1724496645108,-633.66,0.00013698,2]
[335801302,1724496645117,-500.0,0.00013698,2]
[335801304,1724496645126,-802.2770573,0.00013698,2]
[335801307,1724496645138,-390.2429427,0.00013698,2]
[335801309,1724496645148,-500.0,0.00013698,2]
[335801311,1724496645157,-458.6320573,0.00013698,2]
[335801423,1724496646325,-41.3679427,0.00013698,2]
[335801424,1724496646334,-500.0,0.00013698,2]
[335801426,1724496646344,-43.35641593,0.00013698,2]
[335801428,1724496646355,-456.64358407,0.00013698,2]
[335801430,1724496646365,-141.65675802,0.00013698,2]
[335802263,1724497185395,10810.7797985,0.00012005,2]
[335802265,1724497234541,4525.0,0.00027,120]
[335802273,1724497532154,-1039.29145487,0.0001212,2]
[335802275,1724497564193,22006.00212483,0.00011999,2]
[335802276,1724497565182,24223.8643912,0.00011576,2]
[335802281,1724497641096,-500.0,0.0001242,2]
[335802282,1724497641120,-438.59960495,0.00012551,2]
[335802283,1724497641266,-28900.68755999,0.00012551,2]
[335802284,1724497641487,-9132.54275233,0.00012551,2]
[335802286,1724497735171,1200.4024063,0.00012086,2]
[335802295,1724497811150,2713.96502114,0.00012782,2]
[335802297,1724497825045,1672.57230303,0.00012086,2]
[335802348,1724497832528,-604.437211,0.00012877,2]
[335802350,1724497832537,-153.0,0.000129,2]
[335802352,1724497832547,-500.0,0.000129,2]
[335802354,1724497832556,-500.0,0.000129,2]
[335802356,1724497832566,-500.0,0.000129,2]
[335802358,1724497832576,-500.0,0.000129,2]
[335802360,1724497832585,-500.0,0.000129,2]
[335802362,1724497832595,-500.0,0.000129,2]
[335802364,1724497832604,-500.0,0.000129,2]
[335802366,1724497832613,-500.0,0.000129,2]
[335802368,1724497832623,-500.0,0.000129,2]
[335802370,1724497832632,-500.0,0.000129,2]
[335802372,1724497832642,-500.0,0.000129,2]
[335802374,1724497832652,-500.0,0.000129,2]
[335802376,1724497832662,-500.0,0.000129,2]
[335802378,1724497832672,-354.74330037,0.000129,2]
[335802380,1724497832682,-155.03734822,0.00012971,2]
[335802382,1724497832691,-535.11790599,0.00012985,2]
[335802384,1724497832700,-535.11790599,0.00012985,2]
[335802386,1724497832710,-695.14803561,0.00012989,2]
[335802388,1724497832721,-300.0,0.00012999,2]
[335802390,1724497832740,-153.9686292,0.00013,2]
[335802392,1724497832750,-418.79442012,0.00013,2]
[335802395,1724497832763,-2588.98371993,0.00013,2]
[335802601,1724497838858,-11604.1473576,0.00013,2]
[335802603,1724497838870,-13690.28351235,0.00013,2]
[335802605,1724497838880,-153.0,0.00013,2]
[335802607,1724497838891,-521.99604987,0.00013025,2]
[335802611,1724497838903,-107.44159813,0.00013025,2]
[335802613,1724497838912,-605.60064668,0.00013051,2]
[335802615,1724497838923,-500.0,0.00013074,2]
[335802617,1724497838933,-1155.47867488,0.00013448,2]
[335802619,1724497838945,-844.52132512,0.00013448,2]
[335802621,1724497838955,-5720.57521366,0.00013454,2]
[335802623,1724497838965,-487.90135701,0.0001347,2]
[335802625,1724497838982,-1000.0,0.000135,2]
[335802627,1724497838992,-153.0,0.000135,2]
[335802629,1724497839001,-153.0,0.000135,2]
[335802631,1724497839011,-470041.962877,0.00013538,2]
[335802633,1724497839021,-150.0,0.00013557,2]
[335802635,1724497839030,-9617.64466191,0.00013559,2]
[335802636,1724497839039,-156680.654292,0.0001356,2]
[335802638,1724497839048,-83900.3178346,0.0001357,2]
[335802640,1724497839058,-500.0,0.00013573,2]
[335802642,1724497839067,-500.0,0.00013573,2]
[335802644,1724497839077,-500.0,0.00013573,2]
[335802646,1724497839087,-170.27890073,0.00013573,2]
[335802648,1724497839096,-312.01579195,0.00013573,2]
[335802650,1724497839105,-500.0,0.00013573,2]
[335802651,1724497839115,-500.0,0.00013573,2]
[335802653,1724497839124,-160.0,0.00013573,2]
[335802655,1724497839133,-22006.00212483,0.00013599,2]
[335802657,1724497839143,-153.0,0.000136,2]
[335802659,1724497839153,-350.02199508,0.00013673,2]
[335802661,1724497839162,-155.0,0.00013673,2]
[335802663,1724497839174,-190.01792927,0.00013673,2]
[335802665,1724497839185,-158.8,0.00013673,2]
[335802667,1724497839195,-200.32057347,0.00013673,2]
[335802669,1724497839205,-500.0,0.00013673,2]
[335802671,1724497839214,-500.0,0.00013673,2]
[335802673,1724497839224,-500.0,0.00013673,2]
[335802675,1724497839233,-500.0,0.00013673,2]
[335802677,1724497839243,-500.0,0.00013673,2]
[335802679,1724497839253,-600.0,0.00013676,2]
[335802681,1724497839263,-155.0,0.0001368,2]
[335802683,1724497839272,-153.0,0.0001368,2]
[335802685,1724497839282,-153.0,0.0001368,2]
[335802687,1724497839291,-153.0,0.0001368,2]
[335802689,1724497839301,-153.0,0.0001368,2]
[335802691,1724497839310,-153.0,0.0001368,2]
[335802693,1724497839320,-153.0,0.0001368,2]
[335802695,1724497839330,-153.0,0.0001368,2]
[335802697,1724497839339,-153.0,0.0001368,2]
[335802700,1724497839349,-153.0,0.0001368,2]
[335802701,1724497839358,-153.0,0.0001368,2]
[335802703,1724497839367,-153.0,0.0001368,2]
[335802705,1724497839377,-153.0,0.0001368,2]
[335802707,1724497839386,-153.0,0.0001368,2]
[335802709,1724497839396,-153.0,0.0001368,2]
[335802711,1724497839405,-153.0,0.0001368,2]
[335802713,1724497839415,-153.0,0.0001368,2]
[335802715,1724497839424,-153.0,0.0001368,2]
[335802717,1724497839434,-153.0,0.0001368,2]
[335802719,1724497839443,-153.0,0.0001368,2]
[335802722,1724497839453,-153.0,0.0001368,2]
[335802724,1724497839467,-153.0,0.0001368,2]
[335802726,1724497839480,-153.0,0.0001368,2]
[335802728,1724497839489,-153.0,0.0001368,2]
[335802730,1724497839499,-153.0,0.0001368,2]
[335802732,1724497839509,-153.0,0.0001368,2]
[335802734,1724497839519,-153.0,0.0001368,2]
[335802736,1724497839529,-153.0,0.0001368,2]
[335802738,1724497839538,-153.0,0.0001368,2]
[335802740,1724497839548,-153.0,0.0001368,2]
[335802742,1724497839558,-153.0,0.0001368,2]
[335802744,1724497839568,-153.0,0.0001368,2]
[335802747,1724497839578,-153.0,0.0001368,2]
[335802748,1724497839588,-153.0,0.0001368,2]
[335802750,1724497839599,-153.0,0.0001368,2]
[335802752,1724497839608,-153.0,0.0001368,2]
[335802754,1724497839618,-153.0,0.0001368,2]
[335802756,1724497839628,-153.0,0.0001368,2]
[335802759,1724497839638,-153.0,0.0001368,2]
[335802760,1724497839648,-153.0,0.0001368,2]
[335802762,1724497839658,-153.0,0.0001368,2]
[335802765,1724497839668,-153.0,0.0001368,2]
[335802766,1724497839677,-153.0,0.0001368,2]
[335802768,1724497839687,-153.0,0.0001368,2]
[335802770,1724497839696,-153.0,0.0001368,2]
[335802773,1724497839706,-153.0,0.0001368,2]
[335802775,1724497839715,-153.0,0.0001368,2]
[335802777,1724497839727,-153.0,0.0001368,2]
[335802779,1724497839737,-153.0,0.0001368,2]
[335802781,1724497839746,-153.0,0.0001368,2]
[335802783,1724497839755,-153.0,0.0001368,2]
[335802785,1724497839764,-153.0,0.0001368,2]
[335802787,1724497839774,-153.0,0.0001368,2]
[335802789,1724497839783,-153.0,0.0001368,2]
[335802791,1724497839793,-153.0,0.0001368,2]
[335802792,1724497839802,-153.0,0.0001368,2]
[335802794,1724497839811,-153.0,0.0001368,2]
[335802797,1724497839823,-153.0,0.0001368,2]
[335802799,1724497839836,-153.0,0.0001368,2]
[335802801,1724497839850,-153.0,0.0001368,2]
[335802803,1724497839861,-153.0,0.0001368,2]
[335802805,1724497839871,-153.0,0.0001368,2]
[335802807,1724497839880,-153.0,0.0001368,2]
[335802809,1724497839891,-153.0,0.0001368,2]
[335802812,1724497840189,-153.0,0.0001368,2]
[335802813,1724497840199,-153.0,0.0001368,2]
[335802814,1724497840209,-153.0,0.0001368,2]
[335802815,1724497840219,-153.0,0.0001368,2]
[335802816,1724497840228,-153.0,0.0001368,2]
[335802817,1724497840238,-153.0,0.0001368,2]
[335802818,1724497840247,-153.0,0.0001368,2]
[335802819,1724497840257,-153.0,0.0001368,2]
[335802820,1724497840266,-153.0,0.0001368,2]
[335802822,1724497840275,-153.0,0.0001368,2]
[335802823,1724497840285,-153.0,0.0001368,2]
[335802824,1724497840295,-153.0,0.0001368,2]
[335802826,1724497840304,-153.0,0.0001368,2]
[335802828,1724497840314,-153.0,0.0001368,2]
[335802829,1724497840324,-153.0,0.0001368,2]
[335802830,1724497840333,-153.0,0.0001368,2]
[335802832,1724497840343,-153.0,0.0001368,2]
[335802834,1724497840352,-153.0,0.0001368,2]
[335802835,1724497840362,-153.0,0.0001368,2]
[335802837,1724497840371,-153.0,0.0001368,2]
[335802838,1724497840380,-153.0,0.0001368,2]
[335802839,1724497840389,-153.0,0.0001368,2]
[335802840,1724497840398,-153.0,0.0001368,2]
[335802841,1724497840407,-153.0,0.0001368,2]
[335802842,1724497840417,-153.0,0.0001368,2]
[335802843,1724497840427,-153.0,0.0001368,2]
[335802844,1724497840437,-153.0,0.0001368,2]
[335802845,1724497840446,-153.0,0.0001368,2]
[335802846,1724497840456,-153.0,0.0001368,2]
[335802847,1724497840467,-153.0,0.0001368,2]
[335802848,1724497840477,-153.0,0.0001368,2]
[335802849,1724497840486,-500.0,0.00013698,2]
[335802850,1724497840495,-500.0,0.00013698,2]
[335802851,1724497840505,-500.0,0.00013698,2]
[335802852,1724497840515,-511.23922017,0.00013698,2]
[335802853,1724497840524,-1508.43,0.00013698,2]
[335802854,1724497840534,-706.63,0.00013698,2]
[335802856,1724497840543,-500.0,0.00013698,2]
[335802858,1724497840553,-500.55269522,0.00013698,2]
[335802860,1724497840563,-500.0,0.00013698,2]
[335802862,1724497840573,-500.0,0.00013698,2]
[335802864,1724497840582,-500.68041564,0.00013698,2]
[335802866,1724497840591,-500.0,0.00013698,2]
[335802868,1724497840601,-500.0,0.00013698,2]
[335802870,1724497840611,-516.71,0.00013698,2]
[335802872,1724497840623,-500.0,0.00013698,2]
[335802875,1724497840633,-500.0,0.00013698,2]
[335802877,1724497840644,-1094.89,0.00013698,2]
[335802879,1724497840655,-727.18,0.00013698,2]
[335802881,1724497840667,-500.0,0.00013698,2]
[335802883,1724497840676,-500.0,0.00013698,2]
[335802885,1724497840686,-500.0,0.00013698,2]
[335802887,1724497840695,-500.0,0.00013698,2]
[335802889,1724497840706,-1305.61,0.00013698,2]
[335802891,1724497840715,-821.97,0.00013698,2]
[335802893,1724497840725,-718.13,0.00013698,2]
[335802896,1724497840736,-504.53621322,0.00013698,2]
[335802898,1724497840745,-500.0,0.00013698,2]
[335802900,1724497840755,-505.53699037,0.00013698,2]
[335802902,1724497840765,-1360.88,0.00013698,2]
[335802904,1724497840775,-500.0,0.00013698,2]
[335802906,1724497840784,-500.0,0.00013698,2]
[335802908,1724497840793,-526.65,0.00013698,2]
[335802910,1724497840803,-511.99630393,0.00013698,2]
[335802912,1724497840812,-501.1535577,0.00013698,2]
[335802914,1724497840821,-500.0,0.00013698,2]
[335802916,1724497840831,-500.0,0.00013698,2]
[335802918,1724497840841,-501.9178926,0.00013698,2]
[335802920,1724497840854,-500.0,0.00013698,2]
[335802922,1724497840864,-509.38034632,0.00013698,2]
[335802924,1724497840874,-500.0,0.00013698,2]
[335802926,1724497840884,-500.0,0.00013698,2]
[335802928,1724497840897,-500.0,0.00013698,2]
[335802930,1724497840908,-500.0,0.00013698,2]
[335802934,1724497840932,-500.0,0.00013698,2]
[335802936,1724497840945,-500.0,0.00013698,2]
[335802938,1724497840955,-500.0,0.00013698,2]
[335802940,1724497840967,-442.44977797,0.00013698,2]
[335802942,1724497840977,-239.67819389,0.00013698,2]
[335802944,1724497840988,-1059.08,0.00013698,2]
[335802947,1724497840998,-500.0,0.00013698,2]
[335802949,1724497841009,-500.0,0.00013698,2]
[335802951,1724497841019,-591.82,0.00013698,2]
[335802953,1724497841030,-500.0,0.00013698,2]
[335802955,1724497841040,-500.0,0.00013698,2]
[335802957,1724497841050,-167.77473572,0.00013698,2]
[335802959,1724497841060,-581.2,0.00013698,2]
[335802961,1724497841070,-500.0,0.00013698,2]
[335802963,1724497841080,-500.0,0.00013698,2]
[335802965,1724497841091,-788.02,0.00013698,2]
[335802967,1724497841100,-500.0,0.00013698,2]
[335802970,1724497841111,-500.0,0.00013698,2]
[335802972,1724497841121,-500.0,0.00013698,2]
[335802974,1724497841131,-571.02,0.00013698,2]
[335802976,1724497841141,-500.0,0.00013698,2]
[335802978,1724497841151,-500.0,0.00013698,2]
[335802980,1724497841162,-500.0,0.00013698,2]
[335802982,1724497841173,-788.39,0.00013698,2]
[335802984,1724497841183,-500.0,0.00013698,2]
[335802986,1724497841192,-500.0,0.00013698,2]
[335802988,1724497841202,-500.0,0.00013698,2]
[335802990,1724497841212,-500.0,0.00013698,2]
[335802993,1724497841224,-500.0,0.00013698,2]
[335802995,1724497841234,-500.0,0.00013698,2]
[335802997,1724497841244,-500.0,0.00013698,2]
[335802999,1724497841254,-500.0,0.00013698,2]
[335803001,1724497841264,-743.45,0.00013698,2]
[335803003,1724497841274,-500.0,0.00013698,2]
[335803005,1724497841284,-500.18172759,0.00013698,2]
[335803007,1724497841293,-500.0,0.00013698,2]
[335803009,1724497841303,-500.0,0.00013698,2]
[335803011,1724497841314,-500.0,0.00013698,2]
[335803013,1724497841324,-500.0,0.00013698,2]
[335803015,1724497841334,-500.0,0.00013698,2]
[335803017,1724497841344,-500.0,0.00013698,2]
[335803019,1724497841354,-500.0,0.00013698,2]
[335803021,1724497841364,-285.92282374,0.00013698,2]
[335803023,1724497841373,-500.0,0.00013698,2]
[335803025,1724497841383,-566.98,0.00013698,2]
[335803027,1724497841392,-735.26,0.00013698,2]
[335803030,1724497841402,-671.5,0.00013698,2]
[335803032,1724497841412,-500.0,0.00013698,2]
[335803034,1724497841421,-503.11997067,0.00013698,2]
[335803036,1724497841431,-500.0,0.00013698,2]
[335803038,1724497841441,-500.0,0.00013698,2]
[335803040,1724497841450,-2199.63,0.00013698,2]
[335803042,1724497841459,-500.0,0.00013698,2]
[335803044,1724497841471,-500.0,0.00013698,2]
[335803046,1724497841481,-500.0,0.00013698,2]
[335803048,1724497841490,-500.0,0.00013698,2]
[335803050,1724497841499,-866.78,0.00013698,2]
[335803052,1724497841509,-500.0,0.00013698,2]
[335803054,1724497841519,-500.0,0.00013698,2]
[335803056,1724497841529,-500.0,0.00013698,2]
[335803058,1724497841538,-500.0,0.00013698,2]
[335803060,1724497841548,-500.0,0.00013698,2]
[335803062,1724497841558,-687.41,0.00013698,2]
[335803064,1724497841567,-500.0,0.00013698,2]
[335803066,1724497841577,-500.0,0.00013698,2]
[335803068,1724497841587,-500.0,0.00013698,2]
[335803070,1724497841597,-501.67479403,0.00013698,2]
[335803072,1724497841608,-643.50200613,0.00013698,2]
[335803074,1724497841618,-416.90936469,0.00013698,2]
[335803077,1724497841628,-500.0,0.00013698,2]
[335803079,1724497841638,-500.0,0.00013698,2]
[335803081,1724497841648,-500.0,0.00013698,2]
[335803083,1724497841658,-500.0,0.00013698,2]
[335803085,1724497841668,-500.0,0.00013698,2]
[335803087,1724497841678,-500.0,0.00013698,2]
[335803089,1724497841687,-500.0,0.00013698,2]
[335803091,1724497841697,-500.0,0.00013698,2]
[335803093,1724497841706,-601.53830752,0.00013698,2]
[335803095,1724497841717,-500.0,0.00013698,2]
[335803097,1724497841728,-500.0,0.00013698,2]
[335803099,1724497841738,-500.0,0.00013698,2]
[335803101,1724497841748,-500.0,0.00013698,2]
[335803103,1724497841758,-500.0,0.00013698,2]
[335803105,1724497841768,-534.63057297,0.00013698,2]
[335803107,1724497841778,-500.0,0.00013698,2]
[335803109,1724497841788,-654.01,0.00013698,2]
[335803112,1724497841798,-500.0,0.00013698,2]
[335803114,1724497841808,-500.0,0.00013698,2]
[335803116,1724497841818,-500.0,0.00013698,2]
[335803118,1724497841827,-500.0,0.00013698,2]
[335803120,1724497841837,-500.0,0.00013698,2]
[335803122,1724497841851,-500.0,0.00013698,2]
[335803124,1724497841862,-500.0,0.00013698,2]
[335803126,1724497841872,-500.0,0.00013698,2]
[335803128,1724497841883,-193.80537047,0.00013698,2]
[335803130,1724497841893,-782.0,0.00013698,2]
[335803131,1724497841904,-500.0,0.00013698,2]
[335803132,1724497841916,-500.0,0.00013698,2]
[335803133,1724497841928,-500.0,0.00013698,2]
[335803134,1724497841939,-500.0,0.00013698,2]
[335803135,1724497841950,-500.0,0.00013698,2]
[335803136,1724497841961,-500.0,0.00013698,2]
[335803137,1724497841973,-517.68,0.00013698,2]
[335803138,1724497841985,-500.0,0.00013698,2]
[335803139,1724497841996,-500.0,0.00013698,2]
[335803140,1724497842007,-500.0,0.00013698,2]
[335803141,1724497842017,-515.1272377,0.00013698,2]
[335803142,1724497842027,-500.0,0.00013698,2]
[335803144,1724497842039,-500.0,0.00013698,2]
[335803146,1724497842049,-500.0,0.00013698,2]
[335803148,1724497842060,-500.0,0.00013698,2]
[335803150,1724497842071,-500.0,0.00013698,2]
[335803152,1724497842081,-500.0,0.00013698,2]
[335803154,1724497842090,-500.0,0.00013698,2]
[335803156,1724497842100,-500.0,0.00013698,2]
[335803159,1724497842110,-500.0,0.00013698,2]
[335803161,1724497842122,-500.0,0.00013698,2]
[335803163,1724497842132,-573.74,0.00013698,2]
[335803165,1724497842142,-500.0,0.00013698,2]
[335803166,1724497842153,-500.0,0.00013698,2]
[335803168,1724497842163,-500.0,0.00013698,2]
[335803170,1724497842172,-500.0,0.00013698,2]
[335803172,1724497842182,-500.0,0.00013698,2]
[335803174,1724497842191,-500.0,0.00013698,2]
[335803176,1724497842201,-500.0,0.00013698,2]
[335803178,1724497842211,-500.0,0.00013698,2]
[335803180,1724497842225,-500.0,0.00013698,2]
[335803182,1724497842236,-500.0,0.00013698,2]
[335803185,1724497842246,-676.95,0.00013698,2]
[335803186,1724497842255,-500.0,0.00013698,2]
[335803188,1724497842264,-500.0,0.00013698,2]
[335803190,1724497842274,-613.11,0.00013698,2]
[335803192,1724497842283,-500.0,0.00013698,2]
[335803195,1724497842293,-500.0,0.00013698,2]
[335803196,1724497842302,-706.58,0.00013698,2]
[335803198,1724497842311,-500.0,0.00013698,2]
[335803200,1724497842321,-260.0,0.00013698,2]
[335803202,1724497842330,-500.0,0.00013698,2]
[335803204,1724497842340,-500.0,0.00013698,2]
[335803206,1724497842349,-500.0,0.00013698,2]
[335803208,1724497842359,-1179.83,0.00013698,2]
[335803210,1724497842368,-500.0,0.00013698,2]
[335803212,1724497842378,-258.0,0.00013698,2]
[335803214,1724497842387,-500.0,0.00013698,2]
[335803216,1724497842397,-579.2,0.00013698,2]
[335803218,1724497842407,-500.0,0.00013698,2]
[335803220,1724497842416,-500.0,0.00013698,2]
[335803222,1724497842426,-500.0,0.00013698,2]
[335803225,1724497842438,-500.0,0.00013698,2]
[335803227,1724497842450,-500.0,0.00013698,2]
[335803229,1724497842460,-500.0,0.00013698,2]
[335803231,1724497842472,-869.6,0.00013698,2]
[335803233,1724497842481,-500.0,0.00013698,2]
[335803235,1724497842491,-2488.34,0.00013698,2]
[335803237,1724497842501,-673.55,0.00013698,2]
[335803239,1724497842511,-673.55,0.00013698,2]
[335803241,1724497842520,-500.0,0.00013698,2]
[335803243,1724497842530,-673.55,0.00013698,2]
[335803245,1724497842540,-673.55,0.00013698,2]
[335803247,1724497842549,-673.55,0.00013698,2]
[335803249,1724497842559,-673.55,0.00013698,2]
[335803251,1724497842568,-673.55,0.00013698,2]
[335803253,1724497842578,-500.0,0.00013698,2]
[335803255,1724497842587,-673.55,0.00013698,2]
[335803257,1724497842597,-673.55,0.00013698,2]
[335803259,1724497842606,-500.0,0.00013698,2]
[335803261,1724497842615,-673.55,0.00013698,2]
[335803263,1724497842625,-500.0,0.00013698,2]
[335803265,1724497842636,-673.55,0.00013698,2]
[335803267,1724497842647,-500.0,0.00013698,2]
[335803269,1724497842657,-673.55,0.00013698,2]
[335803271,1724497842667,-673.55,0.00013698,2]
[335803273,1724497842676,-673.55,0.00013698,2]
[335803275,1724497842686,-673.55,0.00013698,2]
[335803277,1724497842696,-673.55,0.00013698,2]
[335803279,1724497842706,-673.55,0.00013698,2]
[335803282,1724497842717,-673.55,0.00013698,2]
[335803284,1724497842729,-673.55,0.00013698,2]
[335803286,1724497842739,-673.55,0.00013698,2]
[335803288,1724497842748,-673.55,0.00013698,2]
[335803290,1724497842758,-673.55,0.00013698,2]
[335803292,1724497842767,-673.55,0.00013698,2]
[335803294,1724497842777,-673.69454486,0.00013698,2]
[335803296,1724497842786,-500.0,0.00013698,2]
[335803298,1724497842796,-500.0,0.00013698,2]
[335803300,1724497842805,-500.0,0.00013698,2]
[335803302,1724497842815,-852.55,0.00013698,2]
[335803304,1724497842824,-500.0,0.00013698,2]
[335803306,1724497842833,-500.0,0.00013698,2]
[335803308,1724497842845,-427.47475264,0.00013698,2]
[335803310,1724497842855,-500.0,0.00013698,2]
[335803312,1724497842864,-597.36,0.00013698,2]
[335803314,1724497842874,-1861.39,0.00013698,2]
[335803316,1724497842884,-531.46,0.00013698,2]
[335803318,1724497842894,-500.85815529,0.00013698,2]
[335803320,1724497842904,-763.56,0.00013698,2]
[335803322,1724497842914,-500.0,0.00013698,2]
[335803324,1724497842928,-671.71,0.00013698,2]
[335803326,1724497842938,-500.0,0.00013698,2]
[335803328,1724497842948,-500.0,0.00013698,2]
[335803330,1724497842958,-2754.24,0.00013698,2]
[335803332,1724497842968,-500.0,0.00013698,2]
[335803335,1724497842979,-500.0,0.00013698,2]
[335803338,1724497842990,-500.0,0.00013698,2]
[335803341,1724497843000,-500.0,0.00013698,2]
[335803344,1724497843010,-500.0,0.00013698,2]
[335803346,1724497843020,-500.0,0.00013698,2]
[335803348,1724497843029,-500.0,0.00013698,2]
[335803350,1724497843039,-500.0,0.00013698,2]
[335803352,1724497843050,-516.55611504,0.00013698,2]
[335803354,1724497843060,-500.0,0.00013698,2]
[335803356,1724497843070,-500.0,0.00013698,2]
[335803358,1724497843081,-500.0,0.00013698,2]
[335803360,1724497843090,-512.44720167,0.00013698,2]
[335803362,1724497843100,-500.0,0.00013698,2]
[335803364,1724497843109,-500.0,0.00013698,2]
[335803366,1724497843119,-500.0,0.00013698,2]
[335803368,1724497843129,-1192.09,0.00013698,2]
[335803370,1724497843139,-500.0,0.00013698,2]
[335803372,1724497843149,-500.0,0.00013698,2]
[335803374,1724497843159,-500.0,0.00013698,2]
[335803376,1724497843169,-500.0,0.00013698,2]
[335803379,1724497843179,-500.0,0.00013698,2]
[335803380,1724497843188,-500.0,0.00013698,2]
[335803383,1724497843198,-500.0,0.00013698,2]
[335803385,1724497843209,-500.0,0.00013698,2]
[335803387,1724497843218,-500.0,0.00013698,2]
[335803389,1724497843229,-500.0,0.00013698,2]
[335803391,1724497843239,-500.0,0.00013698,2]
[335803393,1724497843250,-500.0,0.00013698,2]
[335803395,1724497843260,-500.0,0.00013698,2]
[335803397,1724497843270,-500.0,0.00013698,2]
[335803399,1724497843280,-500.0,0.00013698,2]
[335803401,1724497843290,-500.0,0.00013698,2]
[335803403,1724497843300,-500.0,0.00013698,2]
[335803405,1724497843311,-642.83679672,0.00013698,2]
[335803407,1724497843321,-500.0,0.00013698,2]
[335803409,1724497843330,-630.44304182,0.00013698,2]
[335803412,1724497843340,-500.0,0.00013698,2]
[335803414,1724497843350,-500.0,0.00013698,2]
[335803416,1724497843360,-502.82,0.00013698,2]
[335803418,1724497843370,-500.0,0.00013698,2]
[335803420,1724497843381,-855.88,0.00013698,2]
[335803422,1724497843391,-500.0,0.00013698,2]
[335803426,1724497843401,-150.0,0.00013698,2]
[335803428,1724497843412,-668.94,0.00013698,2]
[335803430,1724497843422,-500.0,0.00013698,2]
[335803432,1724497843432,-500.0,0.00013698,2]
[335803434,1724497843442,-500.0,0.00013698,2]
[335803436,1724497843452,-500.0,0.00013698,2]
[335803438,1724497843463,-500.0,0.00013698,2]
[335803440,1724497843474,-639.65,0.00013698,2]
[335803442,1724497843484,-738.84,0.00013698,2]
[335803444,1724497843494,-634.8,0.00013698,2]
[335803446,1724497843504,-500.0,0.00013698,2]
[335803448,1724497843513,-500.0,0.00013698,2]
[335803450,1724497843523,-527.90559748,0.00013698,2]
[335803452,1724497843533,-1007.13,0.00013698,2]
[335803454,1724497843543,-500.0,0.00013698,2]
[335803456,1724497843554,-569.06,0.00013698,2]
[335803458,1724497843563,-500.0,0.00013698,2]
[335803460,1724497843572,-500.0,0.00013698,2]
[335803462,1724497843582,-2424.41,0.00013698,2]
[335803464,1724497843592,-159.93009355,0.00013698,2]
[335803466,1724497843602,-834.01,0.00013698,2]
[335803468,1724497843612,-500.0,0.00013698,2]